[Event "Early-Titled-Tuesday-Blitz-October-24-2023"]
[Site "Chess.com"]
[Date "2023.10.24"]
[Round "4"]
[White "DarZay"]
[Black "Hooded_Old_Man"]
[Result "1-0"]
[WhiteElo "2244"]
[BlackElo "2354"]
[TimeControl "180+1"]
[EndTime "8:36:11 PDT"]
[Termination "DarZay won by resignation"]

1. e4 {[%clk 0:02:55.7]} 1... c5 {[%clk 0:02:59.7]} 2. Nf3 {[%clk 0:02:55.1]}
2... d6 {[%clk 0:02:58.9]} 3. d4 {[%clk 0:02:54.9]} 3... cxd4 {[%clk 0:02:59.8]}
4. Nxd4 {[%clk 0:02:54.9]} 4... Nf6 {[%clk 0:02:57.7]} 5. Nc3 {[%clk 0:02:54.4]}
5... a6 {[%clk 0:02:58.2]} 6. Be2 {[%clk 0:02:52.8]} 6... e5 {[%clk 0:02:58.3]}
7. Nb3 {[%clk 0:02:52.4]} 7... Be7 {[%clk 0:02:58.4]} 8. Be3 {[%clk 0:02:51.6]}
8... Be6 {[%clk 0:02:58.3]} 9. a4 {[%clk 0:02:50.3]} 9... Nbd7 {[%clk 0:02:55]}
10. a5 {[%clk 0:02:46]} 10... Qc7 {[%clk 0:02:54.6]} 11. f3 {[%clk 0:02:44.5]}
11... h5 {[%clk 0:02:49.8]} 12. O-O {[%clk 0:02:39.1]} 12... O-O {[%clk
0:02:50.1]} 13. Qd2 {[%clk 0:02:26.3]} 13... Qc6 {[%clk 0:02:39.3]} 14. Rad1
{[%clk 0:02:20.1]} 14... Rfd8 {[%clk 0:02:34.8]} 15. Nd5 {[%clk 0:02:17.1]}
15... Bxd5 {[%clk 0:02:32.6]} 16. exd5 {[%clk 0:02:14.2]} 16... Qc7 {[%clk
0:02:32.5]} 17. c4 {[%clk 0:02:10.1]} 17... h4 {[%clk 0:02:26.2]} 18. f4 {[%clk
0:02:03.1]} 18... Ne4 {[%clk 0:02:24]} 19. Qb4 {[%clk 0:01:55.8]} 19... exf4
{[%clk 0:02:17]} 20. Bxf4 {[%clk 0:01:53.4]} 20... Ndc5 {[%clk 0:02:17.1]} 21.
Nxc5 {[%clk 0:01:47.9]} 21... Qxc5+ {[%clk 0:02:16.9]} 22. Qxc5 {[%clk
0:01:41.8]} 22... Nxc5 {[%clk 0:02:17.8]} 23. b4 {[%clk 0:01:38.3]} 23... Ne4
{[%clk 0:02:17.7]} 24. Rd3 {[%clk 0:01:34.6]} 24... Bf6 {[%clk 0:02:15.4]} 25.
Rc1 {[%clk 0:01:18.8]} 25... Rac8 {[%clk 0:02:10.8]} 26. Bg4 {[%clk 0:01:13]}
26... Rc7 {[%clk 0:02:09.9]} 27. c5 {[%clk 0:01:10.5]} 27... g5 {[%clk
0:01:58.9]} 28. Bf5 {[%clk 0:00:49.6]} 28... Nxc5 {[%clk 0:01:43.7]} 29. Rxc5
{[%clk 0:00:30.1]} 29... Rxc5 {[%clk 0:01:30.6]} 30. bxc5 {[%clk 0:00:29.1]}
30... gxf4 {[%clk 0:01:31.2]} 31. c6 {[%clk 0:00:25.9]} 31... bxc6 {[%clk
0:01:30.6]} 32. dxc6 {[%clk 0:00:26.1]} 1-0

[Event "Early-Titled-Tuesday-Blitz-October-24-2023"]
[Site "Chess.com"]
[Date "2023.10.24"]
[Round "4"]
[White "sebastianmarinp"]
[Black "IsaqueGoncalvesSanto"]
[Result "1-0"]
[WhiteElo "2415"]
[BlackElo "1823"]
[TimeControl "180+1"]
[EndTime "8:36:12 PDT"]
[Termination "sebastianmarinp won by checkmate"]

1. d4 {[%clk 0:03:00.1]} 1... d5 {[%clk 0:02:59.4]} 2. c4 {[%clk 0:02:58.2]}
2... c6 {[%clk 0:02:57.9]} 3. Nc3 {[%clk 0:02:58.1]} 3... e6 {[%clk 0:02:57.6]}
4. Nf3 {[%clk 0:02:58.2]} 4... dxc4 {[%clk 0:02:57.3]} 5. e4 {[%clk 0:02:58.2]}
5... b5 {[%clk 0:02:54.9]} 6. a4 {[%clk 0:02:57.7]} 6... Bb4 {[%clk 0:02:50.3]}
7. Bd2 {[%clk 0:02:52.4]} 7... Nf6 {[%clk 0:02:45.3]} 8. e5 {[%clk 0:02:51.9]}
8... Bxc3 {[%clk 0:02:42.5]} 9. Bxc3 {[%clk 0:02:49.3]} 9... Nd5 {[%clk
0:02:38.4]} 10. g3 {[%clk 0:02:41.6]} 10... Bb7 {[%clk 0:02:29.6]} 11. Bg2
{[%clk 0:02:41.6]} 11... Nd7 {[%clk 0:02:18.6]} 12. O-O {[%clk 0:02:39.5]} 12...
b4 {[%clk 0:02:11]} 13. Bd2 {[%clk 0:02:38.7]} 13... a5 {[%clk 0:02:10.8]} 14.
Ng5 {[%clk 0:02:35.2]} 14... h6 {[%clk 0:02:08.9]} 15. Ne4 {[%clk 0:02:35.1]}
15... O-O {[%clk 0:01:49.7]} 16. Qh5 {[%clk 0:02:35]} 16... f5 {[%clk
0:01:47.6]} 17. Nd6 {[%clk 0:02:18]} 17... Ba6 {[%clk 0:01:45.4]} 18. Bxh6
{[%clk 0:02:15.8]} 18... gxh6 {[%clk 0:01:44.3]} 19. Qg6+ {[%clk 0:02:15.9]}
19... Kh8 {[%clk 0:01:41.3]} 20. Qxh6+ {[%clk 0:02:16.8]} 20... Kg8 {[%clk
0:01:41.1]} 21. Qxe6+ {[%clk 0:02:16.9]} 21... Kh8 {[%clk 0:01:40]} 22. Qh6+
{[%clk 0:02:06.1]} 22... Kg8 {[%clk 0:01:39.7]} 23. Qg6+ {[%clk 0:02:04.3]}
23... Kh8 {[%clk 0:01:39.2]} 24. e6 {[%clk 0:01:54.1]} 24... N7b6 {[%clk
0:01:16.5]} 25. Qh6+ {[%clk 0:01:48]} 25... Kg8 {[%clk 0:01:16.3]} 26. Qg6+
{[%clk 0:01:47.5]} 26... Kh8 {[%clk 0:01:16]} 27. Nxf5 {[%clk 0:01:23.9]} 27...
Qf6 {[%clk 0:01:03.3]} 28. Qh5+ {[%clk 0:01:08.9]} 28... Kg8 {[%clk 0:01:01.2]}
29. Be4 {[%clk 0:01:06]} 29... Qxe6 {[%clk 0:00:44.8]} 30. Qg5+ {[%clk
0:00:58.6]} 30... Kh8 {[%clk 0:00:44.1]} 31. Qg7# {[%clk 0:00:57.9]} 1-0

[Event "Early-Titled-Tuesday-Blitz-October-24-2023"]
[Site "Chess.com"]
[Date "2023.10.24"]
[Round "4"]
[White "tetrix83"]
[Black "leandrojimenez"]
[Result "1-0"]
[WhiteElo "2635"]
[BlackElo "2431"]
[TimeControl "180+1"]
[EndTime "8:36:17 PDT"]
[Termination "tetrix83 won by resignation"]

1. e4 {[%clk 0:03:00.9]} 1... e5 {[%clk 0:02:59.1]} 2. Nf3 {[%clk 0:03:00.7]}
2... Nc6 {[%clk 0:02:59.8]} 3. Bb5 {[%clk 0:03:00.7]} 3... a6 {[%clk 0:02:59.9]}
4. Bxc6 {[%clk 0:03:00.9]} 4... dxc6 {[%clk 0:03:00.1]} 5. O-O {[%clk
0:02:59.7]} 5... Bg4 {[%clk 0:02:59.4]} 6. h3 {[%clk 0:02:59.6]} 6... h5 {[%clk
0:02:59.9]} 7. d3 {[%clk 0:02:58.5]} 7... Qf6 {[%clk 0:02:59.4]} 8. Nbd2 {[%clk
0:02:58.1]} 8... Ne7 {[%clk 0:02:53.6]} 9. Re1 {[%clk 0:02:56.4]} 9... g5 {[%clk
0:02:47]} 10. d4 {[%clk 0:02:53.2]} 10... Bxf3 {[%clk 0:02:34.3]} 11. Nxf3
{[%clk 0:02:52.2]} 11... g4 {[%clk 0:02:34.7]} 12. Nxe5 {[%clk 0:02:48.1]} 12...
gxh3 {[%clk 0:02:31.4]} 13. Qf3 {[%clk 0:02:47.1]} 13... Qxf3 {[%clk 0:02:25.7]}
14. gxf3 {[%clk 0:02:46.8]} 14... f6 {[%clk 0:02:17.9]} 15. Nd3 {[%clk
0:02:45.5]} 15... O-O-O {[%clk 0:02:16.6]} 16. Be3 {[%clk 0:02:43.3]} 16... f5
{[%clk 0:02:15.5]} 17. Nf4 {[%clk 0:02:40.7]} 17... Bh6 {[%clk 0:02:11.6]} 18.
Nxh3 {[%clk 0:02:29.1]} 18... fxe4 {[%clk 0:01:56.7]} 19. fxe4 {[%clk
0:02:18.7]} 19... Bxe3 {[%clk 0:01:48.3]} 20. fxe3 {[%clk 0:02:18.5]} 20...
Rhg8+ {[%clk 0:01:47.6]} 21. Kh2 {[%clk 0:02:17.7]} 21... Rg4 {[%clk 0:01:47.7]}
22. Nf2 {[%clk 0:02:13.5]} 22... Rg5 {[%clk 0:01:40.4]} 23. Rg1 {[%clk
0:02:13.4]} 23... Rb5 {[%clk 0:01:37.2]} 24. Nd3 {[%clk 0:02:11.2]} 24... Kb8
{[%clk 0:01:30.2]} 25. a4 {[%clk 0:02:07]} 25... Rb6 {[%clk 0:01:22.3]} 26. Rg7
{[%clk 0:01:56.8]} 26... Nc8 {[%clk 0:01:22.2]} 27. Rf1 {[%clk 0:01:50]} 27...
Nd6 {[%clk 0:01:19.6]} 28. e5 {[%clk 0:01:21.9]} 28... Nc4 {[%clk 0:01:19.3]}
29. e6 {[%clk 0:01:19.8]} 29... Nxe3 {[%clk 0:01:10.7]} 30. Rff7 {[%clk
0:01:17.7]} 30... Ng4+ {[%clk 0:01:10.5]} 31. Kg3 {[%clk 0:01:14.9]} 31... c5
{[%clk 0:01:09.3]} 32. e7 {[%clk 0:01:10.8]} 32... Re8 {[%clk 0:01:06.8]} 33.
Nxc5 {[%clk 0:01:06.3]} 33... Ka7 {[%clk 0:00:55.1]} 34. Rf8 {[%clk 0:00:58.6]}
34... Rxe7 {[%clk 0:00:46.9]} 35. Rxe7 {[%clk 0:00:57.7]} 1-0

[Event "Early-Titled-Tuesday-Blitz-October-24-2023"]
[Site "Chess.com"]
[Date "2023.10.24"]
[Round "4"]
[White "THE_PLAYER6"]
[Black "eljanov"]
[Result "0-1"]
[WhiteElo "2561"]
[BlackElo "2816"]
[TimeControl "180+1"]
[EndTime "8:36:21 PDT"]
[Termination "eljanov won by resignation"]

1. Nf3 {[%clk 0:02:59.8]} 1... d5 {[%clk 0:02:59.8]} 2. c4 {[%clk 0:02:58.9]}
2... d4 {[%clk 0:02:59.2]} 3. g3 {[%clk 0:02:58.7]} 3... Nc6 {[%clk 0:02:58.6]}
4. Bg2 {[%clk 0:02:59]} 4... e5 {[%clk 0:02:58.9]} 5. O-O {[%clk 0:02:57.5]}
5... e4 {[%clk 0:02:57.5]} 6. Ne1 {[%clk 0:02:57.7]} 6... h5 {[%clk 0:02:55]} 7.
Bxe4 {[%clk 0:02:49.7]} 7... h4 {[%clk 0:02:50.2]} 8. d3 {[%clk 0:02:48.9]} 8...
Bh3 {[%clk 0:02:46.1]} 9. Bg2 {[%clk 0:02:47.3]} 9... Qd7 {[%clk 0:02:39.4]} 10.
Nf3 {[%clk 0:02:33]} 10... Nf6 {[%clk 0:02:24.4]} 11. Nbd2 {[%clk 0:02:28.9]}
11... Bxg2 {[%clk 0:02:21.3]} 12. Kxg2 {[%clk 0:02:28.7]} 12... hxg3 {[%clk
0:02:21.7]} 13. fxg3 {[%clk 0:02:28.6]} 13... Qh3+ {[%clk 0:02:21.6]} 14. Kg1
{[%clk 0:02:14.2]} 14... Ng4 {[%clk 0:02:21.9]} 15. Rf2 {[%clk 0:02:14.6]} 15...
Nxf2 {[%clk 0:02:19.5]} 16. Kxf2 {[%clk 0:02:14.6]} 16... O-O-O {[%clk 0:02:19]}
17. Ne4 {[%clk 0:02:11.7]} 17... Be7 {[%clk 0:02:10.9]} 18. a3 {[%clk
0:02:02.8]} 18... Qe6 {[%clk 0:02:01.2]} 19. b4 {[%clk 0:02:00.6]} 19... Ne5
{[%clk 0:02:01.2]} 20. Nxe5 {[%clk 0:01:47.6]} 20... Rxh2+ {[%clk 0:01:52.6]}
21. Kf3 {[%clk 0:01:39.4]} 21... Qxe5 {[%clk 0:01:48.4]} 22. Bf4 {[%clk
0:01:38.8]} 22... Qh5+ {[%clk 0:01:42.9]} 23. g4 {[%clk 0:01:35.6]} 23... Qh3+
{[%clk 0:01:42.9]} 24. Bg3 {[%clk 0:01:28.8]} 24... f5 {[%clk 0:01:31.9]} 25.
gxf5 {[%clk 0:01:17.9]} 25... Qxf5+ {[%clk 0:01:27.3]} 26. Bf4 {[%clk
0:01:18.1]} 26... Rh3+ {[%clk 0:01:21.9]} 27. Kg2 {[%clk 0:01:16.4]} 27... Qxf4
{[%clk 0:01:16]} 28. Kxh3 {[%clk 0:01:14.4]} 28... Rh8+ {[%clk 0:01:15.5]} 29.
Kg2 {[%clk 0:01:14.6]} 29... Rh2+ {[%clk 0:01:08.5]} 30. Kg1 {[%clk 0:01:13.8]}
30... Bd6 {[%clk 0:01:08.8]} 31. Nxd6+ {[%clk 0:01:05.4]} 31... cxd6 {[%clk
0:01:09]} 32. Qe1 {[%clk 0:01:01.4]} 32... Rh4 {[%clk 0:00:51.1]} 33. Qf2 {[%clk
0:00:49.9]} 33... Qg5+ {[%clk 0:00:50.6]} 34. Qg2 {[%clk 0:00:46.2]} 34... Rg4
{[%clk 0:00:50.7]} 0-1

[Event "Early-Titled-Tuesday-Blitz-October-24-2023"]
[Site "Chess.com"]
[Date "2023.10.24"]
[Round "4"]
[White "Chessbard1972"]
[Black "hansen"]
[Result "0-1"]
[WhiteElo "2346"]
[BlackElo "2930"]
[TimeControl "180+1"]
[EndTime "8:36:21 PDT"]
[Termination "hansen won by checkmate"]

1. d4 {[%clk 0:03:00.9]} 1... Nf6 {[%clk 0:02:54]} 2. c4 {[%clk 0:03:00.6]} 2...
e6 {[%clk 0:02:54.1]} 3. Nf3 {[%clk 0:02:58.6]} 3... Bb4+ {[%clk 0:02:52.9]} 4.
Nbd2 {[%clk 0:02:56.8]} 4... c6 {[%clk 0:02:12.1]} 5. a3 {[%clk 0:02:54]} 5...
Ba5 {[%clk 0:02:10.9]} 6. b4 {[%clk 0:02:52.2]} 6... Bc7 {[%clk 0:02:11]} 7. e4
{[%clk 0:02:50.5]} 7... d5 {[%clk 0:02:05.5]} 8. e5 {[%clk 0:02:48.9]} 8... Nfd7
{[%clk 0:02:03.1]} 9. cxd5 {[%clk 0:02:46]} 9... exd5 {[%clk 0:02:01.8]} 10. Bd3
{[%clk 0:02:45.2]} 10... f6 {[%clk 0:02:01.2]} 11. exf6 {[%clk 0:02:39.1]} 11...
Qxf6 {[%clk 0:02:00]} 12. O-O {[%clk 0:02:38.8]} 12... O-O {[%clk 0:01:59.9]}
13. Bb2 {[%clk 0:02:36.2]} 13... h6 {[%clk 0:01:55.1]} 14. Nb3 {[%clk
0:02:30.3]} 14... Nb6 {[%clk 0:01:47.6]} 15. Rc1 {[%clk 0:02:24.8]} 15... Bg4
{[%clk 0:01:42.7]} 16. Be2 {[%clk 0:02:22.3]} 16... Bxf3 {[%clk 0:01:32.5]} 17.
Bxf3 {[%clk 0:02:21.3]} 17... Qf4 {[%clk 0:01:32.6]} 18. Re1 {[%clk 0:01:55.3]}
18... Qxh2+ {[%clk 0:01:32.2]} 19. Kf1 {[%clk 0:01:55.7]} 19... Nc4 {[%clk
0:01:32.6]} 20. Rc2 {[%clk 0:01:44]} 20... Qh1+ {[%clk 0:01:23.4]} 21. Ke2
{[%clk 0:01:43.7]} 21... Re8+ {[%clk 0:01:23.2]} 22. Kd3 {[%clk 0:01:29.6]}
22... Qxe1 {[%clk 0:01:20.1]} 23. Qxe1 {[%clk 0:01:29.1]} 23... Rxe1 {[%clk
0:01:18.8]} 24. Nc5 {[%clk 0:01:27.3]} 24... b5 {[%clk 0:01:11.6]} 25. Bc1
{[%clk 0:01:25.7]} 25... a5 {[%clk 0:01:10.4]} 26. Bg4 {[%clk 0:01:15]} 26...
axb4 {[%clk 0:01:05.6]} 27. axb4 {[%clk 0:01:14.8]} 27... Kf7 {[%clk 0:01:01.5]}
28. Bd2 {[%clk 0:01:05.3]} 28... Ra3+ {[%clk 0:01:00.6]} 29. Bc3 {[%clk
0:01:03.8]} 29... Bd6 {[%clk 0:00:49.2]} 30. Nb7 {[%clk 0:01:01.8]} 30... Bxb4
{[%clk 0:00:48.9]} 31. Nd8+ {[%clk 0:00:52.5]} 31... Kf6 {[%clk 0:00:49.1]} 32.
Nb7 {[%clk 0:00:49.4]} 32... Na6 {[%clk 0:00:44.6]} 33. Bd7 {[%clk 0:00:45.2]}
33... Bxc3 {[%clk 0:00:44.4]} 34. Rxc3 {[%clk 0:00:45]} 34... Nb4# {[%clk
0:00:45]} 0-1

[Event "Early-Titled-Tuesday-Blitz-October-24-2023"]
[Site "Chess.com"]
[Date "2023.10.24"]
[Round "4"]
[White "WPWPWP-2015"]
[Black "Zurability"]
[Result "0-1"]
[WhiteElo "2555"]
[BlackElo "2798"]
[TimeControl "180+1"]
[EndTime "8:36:22 PDT"]
[Termination "Zurability won by resignation"]

1. e4 {[%clk 0:03:00.9]} 1... e5 {[%clk 0:02:54]} 2. Nf3 {[%clk 0:03:00.7]} 2...
Nc6 {[%clk 0:02:54.2]} 3. Bb5 {[%clk 0:03:00.5]} 3... a6 {[%clk 0:02:54.4]} 4.
Ba4 {[%clk 0:03:00.9]} 4... Nf6 {[%clk 0:02:54.9]} 5. O-O {[%clk 0:03:01.1]}
5... Be7 {[%clk 0:02:55.2]} 6. Re1 {[%clk 0:03:01.1]} 6... b5 {[%clk 0:02:55]}
7. Bb3 {[%clk 0:03:00.9]} 7... d6 {[%clk 0:02:55.7]} 8. c3 {[%clk 0:03:00.8]}
8... O-O {[%clk 0:02:55.8]} 9. d4 {[%clk 0:03:00.4]} 9... Bg4 {[%clk 0:02:55.5]}
10. a4 {[%clk 0:02:51.6]} 10... Bxf3 {[%clk 0:02:50.5]} 11. gxf3 {[%clk
0:02:50.8]} 11... Rb8 {[%clk 0:02:33.5]} 12. a5 {[%clk 0:02:46.6]} 12... Nh5
{[%clk 0:02:30.3]} 13. f4 {[%clk 0:02:46.1]} 13... Nxf4 {[%clk 0:02:22.2]} 14.
Bxf4 {[%clk 0:02:45.6]} 14... exf4 {[%clk 0:02:23.1]} 15. Qg4 {[%clk 0:02:45]}
15... Bg5 {[%clk 0:02:14.6]} 16. Nd2 {[%clk 0:02:43.3]} 16... Kh8 {[%clk
0:02:12.8]} 17. Nf3 {[%clk 0:02:39.1]} 17... Bh6 {[%clk 0:02:12.8]} 18. Kh1
{[%clk 0:02:19.5]} 18... Ne7 {[%clk 0:02:04.8]} 19. e5 {[%clk 0:02:13.4]} 19...
Ng6 {[%clk 0:02:00.2]} 20. h4 {[%clk 0:01:56.9]} 20... dxe5 {[%clk 0:01:57]} 21.
dxe5 {[%clk 0:01:55.8]} 21... Qc8 {[%clk 0:01:43.9]} 22. e6 {[%clk 0:01:51.9]}
22... fxe6 {[%clk 0:01:37.8]} 23. Bxe6 {[%clk 0:01:48.6]} 23... Qb7 {[%clk
0:01:37.9]} 24. Bf5 {[%clk 0:01:24.7]} 24... Rxf5 {[%clk 0:01:28.7]} 25. Qxf5
{[%clk 0:01:13.3]} 25... Qxf3+ {[%clk 0:01:26.9]} 26. Kg1 {[%clk 0:01:13.7]}
26... Nxh4 {[%clk 0:01:25.3]} 27. Qe4 {[%clk 0:01:12]} 27... Qg4+ {[%clk
0:01:15]} 28. Kf1 {[%clk 0:01:03.8]} 28... Qh3+ {[%clk 0:01:13.4]} 29. Ke2
{[%clk 0:01:02.2]} 29... Rd8 {[%clk 0:01:12.9]} 30. Rg1 {[%clk 0:00:31.8]} 30...
f3+ {[%clk 0:01:08.8]} 31. Ke1 {[%clk 0:00:30.5]} 31... Ng2+ {[%clk 0:01:05.1]}
32. Kf1 {[%clk 0:00:27]} 32... Ne3+ {[%clk 0:01:05.1]} 33. Ke1 {[%clk 0:00:27]}
33... Qf1+ {[%clk 0:01:05.3]} 0-1

[Event "Early-Titled-Tuesday-Blitz-October-24-2023"]
[Site "Chess.com"]
[Date "2023.10.24"]
[Round "4"]
[White "Keeper0416"]
[Black "rachidhuilda"]
[Result "1-0"]
[WhiteElo "2579"]
[BlackElo "2368"]
[TimeControl "180+1"]
[EndTime "8:36:27 PDT"]
[Termination "Keeper0416 won by resignation"]

1. d4 {[%clk 0:03:00.9]} 1... Nf6 {[%clk 0:02:59.2]} 2. c4 {[%clk 0:03:00.8]}
2... c5 {[%clk 0:02:59]} 3. d5 {[%clk 0:03:00.2]} 3... b5 {[%clk 0:02:58.9]} 4.
Qc2 {[%clk 0:02:58]} 4... b4 {[%clk 0:02:58]} 5. e4 {[%clk 0:02:56.3]} 5... d6
{[%clk 0:02:58.4]} 6. Nf3 {[%clk 0:02:56.4]} 6... g6 {[%clk 0:02:58.6]} 7. h3
{[%clk 0:02:55.1]} 7... Bg7 {[%clk 0:02:58.6]} 8. Bd3 {[%clk 0:02:55.5]} 8...
O-O {[%clk 0:02:45.8]} 9. O-O {[%clk 0:02:55.8]} 9... e5 {[%clk 0:02:38.7]} 10.
a3 {[%clk 0:02:48.3]} 10... Qb6 {[%clk 0:02:16.3]} 11. axb4 {[%clk 0:02:47.6]}
11... Qxb4 {[%clk 0:02:16.4]} 12. Nc3 {[%clk 0:02:43.5]} 12... Qb6 {[%clk
0:02:15.2]} 13. Nb5 {[%clk 0:02:40.4]} 13... a6 {[%clk 0:01:35.5]} 14. Bd2
{[%clk 0:02:39.7]} 14... Ne8 {[%clk 0:01:28.7]} 15. b4 {[%clk 0:02:09]} 15...
Nd7 {[%clk 0:01:19]} 16. Rfb1 {[%clk 0:02:04.3]} 16... Bb7 {[%clk 0:00:58.4]}
17. Nxd6 {[%clk 0:02:02.8]} 17... Nxd6 {[%clk 0:00:48]} 18. bxc5 {[%clk
0:02:02.3]} 18... Qxc5 {[%clk 0:00:48.3]} 19. Bb4 {[%clk 0:02:02.2]} 19... Qc7
{[%clk 0:00:48]} 20. Bxd6 {[%clk 0:01:56.8]} 20... Qxd6 {[%clk 0:00:46.6]} 21.
Rxb7 {[%clk 0:01:57.5]} 21... Nc5 {[%clk 0:00:43.2]} 22. Rbb1 {[%clk 0:01:58]}
22... a5 {[%clk 0:00:39.4]} 23. Qc3 {[%clk 0:01:50.2]} 23... a4 {[%clk
0:00:38.7]} 24. Bc2 {[%clk 0:01:50.8]} 24... Rfb8 {[%clk 0:00:35.2]} 25. Rxb8+
{[%clk 0:01:49.5]} 25... Rxb8 {[%clk 0:00:35.5]} 26. Bxa4 {[%clk 0:01:48.7]}
26... Nxe4 {[%clk 0:00:33.1]} 27. Qe3 {[%clk 0:01:43.8]} 27... Nc5 {[%clk
0:00:32.3]} 28. Bc6 {[%clk 0:01:43.8]} 28... h6 {[%clk 0:00:29.3]} 29. Nd2
{[%clk 0:01:38.5]} 29... e4 {[%clk 0:00:27.4]} 30. Re1 {[%clk 0:01:34.3]} 30...
Nd3 {[%clk 0:00:24.8]} 31. Nxe4 {[%clk 0:01:31.5]} 31... Qa3 {[%clk 0:00:16.5]}
32. Rd1 {[%clk 0:01:30.4]} 32... Rb3 {[%clk 0:00:16.4]} 33. Nd2 {[%clk 0:01:25]}
33... Rc3 {[%clk 0:00:15]} 34. Nb1 {[%clk 0:01:24]} 34... Qb3 {[%clk 0:00:14.8]}
35. Nxc3 {[%clk 0:01:23.9]} 35... Qxc3 {[%clk 0:00:12.8]} 36. Qxd3 {[%clk
0:01:23.1]} 1-0

[Event "Early-Titled-Tuesday-Blitz-October-24-2023"]
[Site "Chess.com"]
[Date "2023.10.24"]
[Round "4"]
[White "GHANDEEVAM2003"]
[Black "Tejas_Rama"]
[Result "1-0"]
[WhiteElo "3025"]
[BlackElo "2551"]
[TimeControl "180+1"]
[EndTime "8:36:28 PDT"]
[Termination "GHANDEEVAM2003 won on time"]

1. b3 {[%clk 0:02:58.2]} 1... Nf6 {[%clk 0:02:58.9]} 2. Bb2 {[%clk 0:02:58]}
2... d5 {[%clk 0:02:56.9]} 3. Nf3 {[%clk 0:02:57.6]} 3... c5 {[%clk 0:02:56.8]}
4. e3 {[%clk 0:02:57.4]} 4... Nc6 {[%clk 0:02:56]} 5. Bb5 {[%clk 0:02:57.4]}
5... Qc7 {[%clk 0:02:52.9]} 6. O-O {[%clk 0:02:56.1]} 6... e6 {[%clk 0:02:38]}
7. Bxc6+ {[%clk 0:02:51.7]} 7... Qxc6 {[%clk 0:02:37.3]} 8. Ne5 {[%clk
0:02:52.6]} 8... Qc7 {[%clk 0:02:37.2]} 9. f4 {[%clk 0:02:51]} 9... Bd6 {[%clk
0:02:32.9]} 10. d3 {[%clk 0:02:50.4]} 10... Rb8 {[%clk 0:02:22.1]} 11. Nd2
{[%clk 0:02:46.7]} 11... b6 {[%clk 0:02:15.6]} 12. g4 {[%clk 0:02:38.5]} 12...
Bb7 {[%clk 0:01:44.3]} 13. g5 {[%clk 0:02:37.5]} 13... Ng8 {[%clk 0:01:39.4]}
14. Nec4 {[%clk 0:02:18.4]} 14... f6 {[%clk 0:00:52.6]} 15. Nxd6+ {[%clk
0:02:15.4]} 15... Qxd6 {[%clk 0:00:52.2]} 16. Qg4 {[%clk 0:02:15.2]} 16... Qe7
{[%clk 0:00:43.2]} 17. a4 {[%clk 0:02:02.3]} 17... Kd7 {[%clk 0:00:28.2]} 18. a5
{[%clk 0:01:52.6]} 18... b5 {[%clk 0:00:28.4]} 19. a6 {[%clk 0:01:52.7]} 19...
Bc6 {[%clk 0:00:28.7]} 20. b4 {[%clk 0:01:53]} 20... cxb4 {[%clk 0:00:20.8]} 21.
Bd4 {[%clk 0:01:52.1]} 21... h5 {[%clk 0:00:18.4]} 22. Qg3 {[%clk 0:01:37.9]}
22... Ra8 {[%clk 0:00:18.5]} 23. Nb3 {[%clk 0:01:37.6]} 23... h4 {[%clk
0:00:17.1]} 24. Qg4 {[%clk 0:01:37.9]} 24... f5 {[%clk 0:00:14.9]} 25. Qg2
{[%clk 0:01:35.9]} 25... Kc8 {[%clk 0:00:13.8]} 26. Qd2 {[%clk 0:01:32.1]} 26...
Qd7 {[%clk 0:00:08.9]} 27. Qxb4 {[%clk 0:01:27.7]} 27... Ne7 {[%clk 0:00:08.5]}
28. Nc5 {[%clk 0:01:24.4]} 28... Qd6 {[%clk 0:00:06.8]} 29. Be5 {[%clk
0:01:24.4]} 29... Qd8 {[%clk 0:00:04.4]} 30. Nxe6 {[%clk 0:01:23.9]} 30... Qd7
{[%clk 0:00:05.1]} 31. Nd4 {[%clk 0:01:24.5]} 31... Rd8 {[%clk 0:00:02.2]} 32.
Ra3 {[%clk 0:01:23.3]} 1-0

[Event "Early-Titled-Tuesday-Blitz-October-24-2023"]
[Site "Chess.com"]
[Date "2023.10.24"]
[Round "4"]
[White "bardiya_Daneshvar"]
[Black "matenitian"]
[Result "1-0"]
[WhiteElo "2965"]
[BlackElo "2578"]
[TimeControl "180+1"]
[EndTime "8:36:30 PDT"]
[Termination "bardiya_Daneshvar won by resignation"]

1. b3 {[%clk 0:03:00.9]} 1... d5 {[%clk 0:02:53.4]} 2. Bb2 {[%clk 0:03:01.8]}
2... Nf6 {[%clk 0:02:53.1]} 3. e3 {[%clk 0:03:01.1]} 3... e6 {[%clk 0:02:53.5]}
4. Nf3 {[%clk 0:03:01.2]} 4... Be7 {[%clk 0:02:53.9]} 5. c4 {[%clk 0:03:01.5]}
5... O-O {[%clk 0:02:54.3]} 6. Nc3 {[%clk 0:03:02.3]} 6... b6 {[%clk 0:02:54.4]}
7. cxd5 {[%clk 0:03:02.3]} 7... exd5 {[%clk 0:02:51.9]} 8. d4 {[%clk 0:03:02.6]}
8... c5 {[%clk 0:02:50.6]} 9. Bd3 {[%clk 0:03:02.5]} 9... Be6 {[%clk 0:02:50.3]}
10. O-O {[%clk 0:03:02.6]} 10... Nc6 {[%clk 0:02:42.9]} 11. dxc5 {[%clk
0:03:01.5]} 11... bxc5 {[%clk 0:02:42.6]} 12. Ne2 {[%clk 0:03:02.3]} 12... Rc8
{[%clk 0:02:38.4]} 13. Nf4 {[%clk 0:03:00.8]} 13... Qd6 {[%clk 0:02:17.5]} 14.
Rc1 {[%clk 0:02:55.8]} 14... Rfd8 {[%clk 0:02:16]} 15. Bb1 {[%clk 0:02:54.6]}
15... h6 {[%clk 0:02:00.8]} 16. Bxf6 {[%clk 0:02:46.5]} 16... Bxf6 {[%clk
0:02:00.4]} 17. Nxe6 {[%clk 0:02:45.3]} 17... fxe6 {[%clk 0:01:53.2]} 18. Qc2
{[%clk 0:02:45.9]} 18... Ne7 {[%clk 0:01:48.1]} 19. Rfd1 {[%clk 0:02:38.5]}
19... d4 {[%clk 0:01:38.4]} 20. Nd2 {[%clk 0:02:35.4]} 20... d3 {[%clk
0:00:56.9]} 21. Qc4 {[%clk 0:02:30.7]} 21... Bb2 {[%clk 0:00:57.1]} 22. Ne4
{[%clk 0:02:28.7]} 22... Qe5 {[%clk 0:00:57.3]} 23. f4 {[%clk 0:02:22.7]} 23...
Qf5 {[%clk 0:00:37.3]} 24. Bxd3 {[%clk 0:02:06.1]} 24... Bxc1 {[%clk 0:00:37.2]}
25. Qxc1 {[%clk 0:02:06.8]} 25... Qh5 {[%clk 0:00:31.9]} 26. Ng3 {[%clk
0:02:03.6]} 26... Qd5 {[%clk 0:00:29.4]} 27. Bh7+ {[%clk 0:02:00.8]} 27... Kxh7
{[%clk 0:00:30.1]} 28. Rxd5 {[%clk 0:02:01.4]} 28... exd5 {[%clk 0:00:28.3]} 29.
Qc2+ {[%clk 0:01:47.2]} 29... Kg8 {[%clk 0:00:27.8]} 30. f5 {[%clk 0:01:45.2]}
30... Rc6 {[%clk 0:00:21.1]} 31. e4 {[%clk 0:01:43.3]} 31... d4 {[%clk
0:00:19.6]} 32. Qc4+ {[%clk 0:01:41]} 32... Kf8 {[%clk 0:00:16.6]} 33. Qd3
{[%clk 0:01:36.3]} 33... c4 {[%clk 0:00:11.5]} 34. bxc4 {[%clk 0:01:36.1]} 34...
Rc5 {[%clk 0:00:12.2]} 35. Ne2 {[%clk 0:01:31.1]} 35... a5 {[%clk 0:00:10.5]}
36. Nf4 {[%clk 0:01:30.6]} 36... Kg8 {[%clk 0:00:09.3]} 37. Ne6 {[%clk
0:01:30.6]} 37... Rdc8 {[%clk 0:00:09.6]} 38. Nxc5 {[%clk 0:01:30.9]} 38... Rxc5
{[%clk 0:00:10.1]} 39. Qxd4 {[%clk 0:01:31.6]} 1-0